Cogmind - Beta 12 X4 @@@ ROGUE MODE // 2022.12.08 @ 20:42:00 Player: Lunatic Blue Result: Destroyed by DAS Turret with DAS Cannon Performance ------------- Evolutions (0) 0 Regions Visited (3) 600 Robots Destroyed (14) 70 Value Destroyed (301) 301 Prototype IDs (4) 80 Alien Tech Used (0) 0 Bonus (188) 188 TOTAL SCORE: 1239 Bonus ------- Follower Combat Kills 14 Aligned with FarCom 300 Friendly Fire -126 Cogmind --------- Core Integrity 0/250 Matter 26/300 Energy 150/310 System Corruption 6% Temperature Cool (0) Movement Rolling (200) Ox8 Location -10/Exiles Parts ------- > --- POWER (1) -------- Reinforced Fission Core > --- PROPULSION (2) --- Wheel > --- UTILITY (2) ------ High-capacity Storage Unit Thief Drone Bay (1/3) > --- WEAPON (2) ------- Latent Energy Streamer 8R-AWN's Boregun > --- INVENTORY (20) --- Light Treads Light Treads Wheel Wheel Compact Wheel High-capacity Storage Unit Improved Signal Interpreter Improved Terrain Scanner AS-neutralizer No. 17b Assault Rifle 8R-AWN's Boregun Assault Cannon Grenade Launcher Field Lobotomy Kit (5) Deploy-a-Sentry Deploy-a-Sentry Deploy-a-Sentry Peak State ------------ > --- POWER ------------ Reinforced Fission Core > --- PROPULSION ------- Light Treads Wheel > --- UTILITY ---------- High-capacity Storage Unit Thief Drone Bay > --- WEAPON ----------- Latent Energy Streamer 8R-AWN's Boregun > --- INVENTORY -------- Light Treads Light Treads Wheel Wheel Compact Wheel High-capacity Storage Unit Improved Signal Interpreter Improved Terrain Scanner AS-neutralizer No. 17b Assault Rifle 8R-AWN's Boregun Assault Cannon Grenade Launcher Field Lobotomy Kit Deploy-a-Sentry Deploy-a-Sentry Deploy-a-Sentry [Rating: 42] Favorites ----------- Power Light Nuclear Core Engine Ion Engine Power Core Light Nuclear Core Propulsion Light Treads Treads Light Treads Leg Aluminum Leg Wheel Wheel Utility High-capacity Storage Unit Device Seismic Detector Storage High-capacity Storage Unit Weapon Assault Rifle Energy Gun Medium Laser Energy Cannon Latent Energy Streamer Ballistic Gun Assault Rifle Ballistic Cannon Assault Cannon Launcher Grenade Launcher Special Weapon Field Lobotomy Kit Build | -11 -10 -10 -10 ------- Run | Scr Mat Min Exi Slots Evolved . | . . . . Power . | . . . . Propulsion . | . . . . Utility . | . . . . Weapon . | . . . . Parts Attached 31 | 8 1 9 13 Power 4 | 1 . 1 2 Engine 2 | 1 . . 1 Core 2 | . . 1 1 Reactor . | . . . . Propulsion 6 | 4 . 2 . Treads 1 | 1 . . . Leg 2 | 2 . . . Wheel 3 | 1 . 2 . Hover . | . . . . Flight . | . . . . Utility 7 | 1 1 3 2 Device 4 | . 1 2 1 Storage 3 | 1 . 1 1 Processor . | . . . . Hackware . | . . . . Protection . | . . . . Artifact . | . . . . Weapon 14 | 2 . 3 9 Energy Gun 1 | 1 . . . Energy Cannon 2 | . . . 2 Ballistic Gun 8 | 1 . 2 5 Ballistic Cannon 1 | . . 1 . Launcher 1 | . . . 1 Special Weapon 1 | . . . 1 Impact Weapon . | . . . . Slashing Weapon . | . . . . Piercing Weapon . | . . . . Special Melee Weapon . | . . . . Unidentified Prototypes 4 | . . 1 3 Parts Lost 3 | . . 1 2 Power 1 | . . . 1 Propulsion 1 | . . . 1 Utility 1 | . . 1 . Weapon . | . . . . Highest Loss Streak 1 | . . 1 1 To Critical Strikes . | . . . . Average Slot Usage (%) 92 | . 95 95 90 Engine 2 | . 14 2 1 Core 11 | . . 11 12 Treads 13 | . 14 14 13 Wheel 14 | . 14 14 14 Device 7 | . 9 9 5 Storage 14 | . 14 14 14 Ballistic Gun 16 | . 14 16 16 Ballistic Cannon 9 | . . 11 9 Naked Turns . | . . . . Heaviest Build 81 | 14 15 33 81 Greatest Support 20 | 20 10 16 10 Greatest Overweight (x) 8 | 1 1 3 8 Average Overweight (x) 3 | . 1 1 4 Largest Inventory Capacity 20 | 8 8 15 20 Average Capacity 15 | 6 8 12 19 Most Carried 19 | 4 7 11 19 Average Carried 12 | 2 5 9 15 Final Capacity 20 | 8 8 15 20 Final Carried 17 | 4 7 11 17 Class Distribution -------------------- 100% | Mutant Dominant Class ---------------- Mutant | -10/Materials Mutant | -10/Mines Mutant | -10/Exiles Resources | -11 -10 -10 -10 ----------- Run | Scr Mat Min Exi Matter Collected 882 | 208 . 368 306 Remotely . | . . . . Salvage Created 363 | . . 317 46 Parts 22 | . . 22 . Haulers Intercepted . | . . . . Recyclers Shooed . | . . . . Parts Field Recycled . | . . . . Retrieved Matter . | . . . . Parts Self-Destructed . | . . . . Prevented . | . . . . Kills | -11 -10 -10 -10 ------- Run | Scr Mat Min Exi Combat Hostiles Destroyed 17 | . . 14 3 Guns 11 | . . 9 2 Cannons 5 | . . 5 . AOE 1 | . . . 1 Classes Destroyed 5 | . . 4 1 Worker 1 | . . 1 . Drone 1 | . . . 1 Swarmer 7 | . . 7 . Grunt 6 | . . 6 . Assembled 4 | . . 1 3 Best Kill Streak 4 | . . 4 2 Combat Bots Only 4 | . . 4 2 Max Kills in Single Turn 1 | . . 1 1 Gunslinging . | . . . . Exploded 1 | . . . 1 Melee . | . . . . Uniques/NPCs Destroyed . | . . . . Combat | -11 -10 -10 -10 -------- Run | Scr Mat Min Exi Damage Taken 991 | . . 419 572 Core 255 | . . 54 201 Absorbed by Shields . | . . . . Core Remaining (%) 100 | 100 . . . Volleys Fired 73 | . . 30 43 Largest 2 | . . 2 2 Hottest 70 | . . 70 60 Shots Fired 138 | . . 60 78 Gun 109 | . . 39 70 Cannon 26 | . . 21 5 Launcher 3 | . . . 3 Special . | . . . . Kinetic 129 | . . 57 72 Thermal 3 | . . 3 . Explosive 3 | . . . 3 Electromagnetic 3 | . . . 3 Robot Hit Streak 12 | . . 12 8 Robot Miss Streak 6 | . . 4 6 Penetration Max 1 | . . . 1 Secondary Targets 1 | . . 1 . Max Gunslinging Chain 1 | . . 1 . Shots Hit Robots 74 | . . 37 37 Core Hits 33 | . . 19 14 Critical Kills 3 | . . 1 2 Critical Parts Destroyed 2 | . . . 2 Critical Strikes 14 | . . 3 11 Burn 1 | . . 1 . Destroy 12 | . . 1 11 Blast 1 | . . 1 . Melee Attacks . | . . . . Impact . | . . . . Slashing . | . . . . Piercing . | . . . . Sneak Attacks . | . . . . Combat Hostiles . | . . . . Follow-up Attacks . | . . . . Damage Inflicted 1168 | . . 629 539 Guns 689 | . . 302 387 Cannons 361 | . . 327 34 Explosions 118 | . . . 118 Melee . | . . . . Ramming . | . . . . Kinetic 1006 | . . 591 415 Thermal 38 | . . 38 . Explosive 44 | . . . 44 Electromagnetic 80 | . . . 80 Impact . | . . . . Slashing . | . . . . Piercing . | . . . . Highest Corruption 4 | . . . 4 Average Corruption 3 | . . . 3 Corruption Purged . | . . . . Corruption Blocked . | . . . . Overload Shots . | . . . . Overflow Damage 26 | . . 26 . Projectiles 26 | . . 26 . Explosions . | . . . . Melee . | . . . . Knockbacks 2 | . . 1 1 Impact . | . . . . Kinetic 2 | . . 1 1 Secondary . | . . . . Self-Inflicted Damage . | . . . . Shots . | . . . . Rammed . | . . . . Targets Rammed . | . . . . Kicked . | . . . . Crushed . | . . . . Highest Temperature 126 | . . 126 68 Average Temperature 22 | . . 32 15 Received Heat Transfer 75 | . . 75 . Siege Activations . | . . . . Robots Corrupted . | . . . . Combat Hostiles . | . . . . Parts Fried . | . . . . Impact Corruptions . | . . . . Robots Melted . | . . . . Combat Hostiles . | . . . . Parts Melted . | . . . . Heat Transferred 185 | . . 185 . Parts Sabotaged . | . . . . Parts Stolen . | . . . . Parts Stripped . | . . . . Power Chain Reactions . | . . . . Missiles Intercepted . | . . . . Latent Energy Used 262 | . . . 262 LE Corruption 6 | . . . 6 Alert | -11 -10 -10 -10 ------- Run | Scr Mat Min Exi Peak Influence 212 | . 60 212 . Initial 23 | . . 23 . Average 96 | . 22 111 . Maximum Alert Level 1 | . . 1 . Low Security (%) 96 | 100 100 96 . Level 1 3 | . . 3 . Level 2 . | . . . . Level 3 . | . . . . Level 4 . | . . . . Level 5 . | . . . . High Security . | . . . . Max Security . | . . . . Squads Dispatched . | . . . . Investigation . | . . . . Extermination . | . . . . Reinforcement . | . . . . Assault . | . . . . Garrison . | . . . . Intercept . | . . . . Searches Triggered . | . . . . Construction Impeded . | . . . . Haulers Reinforced . | . . . . Active Scanning Responses . | . . . . Cargo Convoy Interrupts . | . . . . Stealth | -11 -10 -10 -10 --------- Run | Scr Mat Min Exi Distress Signals 1 | . 1 . . Communications Jammed . | . . . . Distress Signals . | . . . . Times Spotted 37 | . 4 15 18 Peak Tracking Total 9 | . 3 3 9 Tactical Retreats 8 | . 1 . 7 Traps | -11 -10 -10 -10 ------- Run | Scr Mat Min Exi Traps Triggered 1 | . . 1 . Indirectly . | . . . . Trap Hack Attempts . | . . . . Triggered . | . . . . Disarmed . | . . . . Reprogrammed . | . . . . Reused . | . . . . Traps Extracted . | . . . . Installed . | . . . . Triggered . | . . . . Exploded 3 | . . . 3 Machines | -11 -10 -10 -10 ---------- Run | Scr Mat Min Exi Machines Disabled 7 | . . . 7 Max in Single Turn 3 | . . . 3 Machines Sabotaged . | . . . . Overloaded Fab Kills . | . . . . Hacking | -11 -10 -10 -10 --------- Run | Scr Mat Min Exi Machines Accessed 4 | . . 3 1 Terminals 1 | . . 1 . Fabricators . | . . . . Repair Stations . | . . . . Recycling Units . | . . . . Scanalyzers . | . . . . Garrison Access . | . . . . Total Hacks 5 | . . 4 1 Successful 3 | . . 2 1 Failed 2 | . . 2 . Catastrophic 1 | . . 1 . Database Lockouts . | . . . . Manual 3 | . . 2 1 Terminals 2 | . . 2 . Fabricators . | . . . . Repair Stations . | . . . . Recycling Units . | . . . . Scanalyzers . | . . . . Garrison Access . | . . . . Terminal Hacks 3 | . . 2 1 Record 1 | . . . 1 Open Door 2 | . . 2 . Fabricator Hacks . | . . . . Repair Station Hacks . | . . . . Recycling Unit Hacks . | . . . . Scanalyzer . | . . . . Garrison Access Hacks . | . . . . Unauthorized Hacks . | . . . . Terminals . | . . . . Fabricators . | . . . . Repair Stations . | . . . . Recycling Units . | . . . . Scanalyzers . | . . . . Garrison Access . | . . . . Data Cores Recovered . | . . . . Used . | . . . . Hacking Detections 1 | . . 1 . Full Trace Events . | . . . . Feedback Events . | . . . . Feedback Blocked . | . . . . Robot Schematics Acquired . | . . . . Robots Built . | . . . . Authchips . | . . . . Time . | . . . . Total Robot Build Rating . | . . . . Part Schematics Acquired . | . . . . Parts Built . | . . . . Authchips . | . . . . Time . | . . . . Total Part Build Rating . | . . . . Parts Repaired . | . . . . Time . | . . . . Parts Recycled . | . . . . Recycled Matter . | . . . . Retrieved Matter . | . . . . Retrieved Components . | . . . . Parts Scanalyzed . | . . . . Part Schematics Acquired . | . . . . Parts Damaged . | . . . . Bothacking | -11 -10 -10 -10 ------------ Run | Scr Mat Min Exi Used RIF Installer . | . . . . Robots Hacked . | . . . . Non-combat . | . . . . Combat . | . . . . Robot Hacks Applied . | . . . . Relay Couplers Released . | . . . . Fabnet Peak Effective % . | . . . . Robots Rewired . | . . . . Allies Hacked . | . . . . Hacks Repelled . | . . . . Allies | -11 -10 -10 -10 -------- Run | Scr Mat Min Exi Total Allies 1 | . . 1 . Largest Group 1 | . . 1 . Highest-Rated Group 31 | . . 31 . Highest-Rated Ally 31 | . . 31 . Total Orders . | . . . . Ally Attacks 25 | . . 2 23 Total Damage 127 | . . 43 84 Kills 2 | . . 2 . Allies Corrupted . | . . . . Allies Melted . | . . . . Intel | -11 -10 -10 -10 ------- Run | Scr Mat Min Exi Robot Analysis Total . | . . . . Derelict Logs Recovered 1 | . . 1 . Drone Launches 6 | . . . 6 Drone Recoveries 4 | . . . 4 Exploration | -11 -10 -10 -10 ------------- Run | Scr Mat Min Exi Turns Passed 2697 | 83 96 988 1530 Spaces Moved 1715 | 65 61 735 854 Core 2 | 2 . . . Treads 7 | 7 . . . Legs 9 | 9 . . . Wheels 1697 | 47 61 735 854 Hover . | . . . . Flight . | . . . . Fastest Speed 50 | 50 95 95 125 Average Speed 132 | 102 95 114 152 Slowest Speed 200 | 160 95 130 200 Overloaded Moves . | . . . . Propulsion Burnouts . | . . . . Robots Hopped . | . . . . Cave-ins Triggered . | . . . . Exploration Rate (%) 48 | 4 15 96 77 Regions Visited 3 Branch Regions 2 Pre-discovered Areas 1 | . . . 1 Known Exits Taken . | . . . . Unknown Exits Taken 3 | 1 1 1 . Scrap Searched 1 | . . 1 . Spaces Dug . | . . . . Terrain Destroyed 37 | . . 1 36 Melee . | . . . . Projectile 21 | . . 1 20 AOE 13 | . . . 13 Terrain Rammed . | . . . . Walls Destroyed . | . . . . Machines Disabled . | . . . . Actions | -11 -10 -10 -10 --------- Run | Scr Mat Min Exi Total 2012 | 78 98 830 1006 Wait 144 | . 34 36 74 Move 1712 | 64 60 734 854 Hop . | . . . . Pick Up 27 | 4 3 9 11 Fast Attach 16 | 8 1 3 4 Attach 4 | . . . 4 Detach 2 | . . 1 1 Swap 11 | . . 6 5 Drop 23 | 2 . 11 10 Fire 73 | . . 30 43 Melee . | . . . . Ram . | . . . . Kick . | . . . . Crush . | . . . . Escape Stasis . | . . . . Rewire . | . . . . Trap . | . . . . Miscellaneous . | . . . . Route ------- -11/Scrapyard -10/Materials -10/Mines (discovered 3 exits: [*Mat x2] / *Exi) -10/Exiles (discovered 1 exit: [*Min]) History --------- Turn | Location | Event 14 | -11/Scrapyard | Discovered new exit (range 15) 84 | -11/Scrapyard | Entered Materials 99 | -10/Materials | Discovered new exit (range 14) 180 | -10/Materials | Entered Mines 315 | -10/Mines | Build established: Mutant 343 | -10/Mines | Received a Mining Laser from a helpful Derelict 375 | -10/Mines | Met a Derelict who couldn't figure out how to use a Trap Extractor 467 | -10/Mines | Found the Drone Emporium 470 | -10/Mines | Found Prototype Device 471 | -10/Mines | Identified Thief Drone Bay 605 | -10/Mines | Discovered new exit (range 6) 698 | -10/Mines | Excavation squad dispatched 698 | -10/Mines | A large section of the Mines collapsed 960 | -10/Mines | Learned 2 Materials zone layouts 1037 | -10/Mines | Discovered new exit (range 11) 1162 | -10/Mines | Deemed a non-threat by the Exiles lab entrance 1163 | -10/Mines | Discovered new exit (range 5) 1168 | -10/Mines | Entered Exiles 1198 | -10/Exiles | Met 8R-AWN 1217 | -10/Exiles | Met EX-HEX 1270 | -10/Exiles | Met EX-DEC 1275 | -10/Exiles | Learned location of Zion (-7) 1389 | -10/Exiles | Visited The Gauntlet 1588 | -10/Exiles | Met EX-BIN 1609 | -10/Exiles | Aligned with FarCom system 1611 | -10/Exiles | Given EX-Vault access code 1646 | -10/Exiles | Opened EX-Vault 1654 | -10/Exiles | Found Prototype Special Weapon 1659 | -10/Exiles | Found Prototype Energy Cannon 1659 | -10/Exiles | Identified Latent Energy Streamer 1667 | -10/Exiles | Identified Field Lobotomy Kit 1680 | -10/Exiles | Found Deploy-a-Sentry 1683 | -10/Exiles | Found Deploy-a-Sentry 1685 | -10/Exiles | Found Deploy-a-Sentry 1722 | -10/Exiles | Warned to stay clear of 0b10 Research branches 2098 | -10/Exiles | Attacked by the Exiles 2208 | -10/Exiles | Found 8R-AWN's Boregun 2210 | -10/Exiles | Found 8R-AWN's Boregun 2211 | -10/Exiles | Discovered new exit (range 16) 2503 | -10/Exiles | Core integrity fell below 50% 2697 | -10/Exiles | Core integrity fell below 20% 2698 | -10/Exiles | Destroyed by DAS Turret with DAS Cannon Last Messages --------------- 02436_ HV Slug penetrates Wall. 02441_ HV Slug penetrates Machine. 02446_ HV Slug penetrates Wall. 02458_ Wall collapses. 02458_ HV Slug penetrates Wall. 02459_ Wall collapses. 02468_ HV Slug penetrates Earth. 02477_ HV Slug penetrates Wall. 02484_ HV Slug penetrates Earth. 02488_ The unstable cave ceiling collapses. 02490_ HV Slug penetrates Wall. 02496_ Wall collapses. 02501_ Acquired 8 matter. 02504_ Lgt. Nuclear Core destroyed. 02541_ Extracted 1 energy. 02596_ Acquired 30 matter. 02648_ Deuterium Engine blasted off. 02648_ Knocked back. 02676_ Lgt. Treads destroyed. 02678_ Knocked back. Map ----- +----------------------------------------------------+ | ???????????????????????????????????????#" ## | | ##?????????????????????????????????????#""""""?# | | #?????????????????????????????????????##"###??# | | ##?????????????????????????????????????????????# | | #??????????????????????????????????????????????# | | ##????????????????????????????????????????????## | | #????????????#######?????????????????????????#" | | #######??????#!!! "#?????????????????????????#" | | #""##?????# "#?????????????????????????#" | | #?????# "#?????????????????????????#" | | ##???## " #????????????####?????????#" | | #####" "#???????????? """????????#" | | ##" ""#????????????" """#???????## | | # #" ###???????????"" #????????# | | #"## ##??????????#"" #????????#" | | #####"# #??????????#"" "#????????#" | | ????##### ####????????? ""?????????#" | | ########" ! #??????????" "?????????##" | | # !!""""" #??????????# #????????##"" | | #! # ######???### ###?######"" | | #! "# "#####X# #"###""""""" | | #! ## # """""" " "" | | # !" ####### # %% "" """ " | | #####"####?????## " | | ????###?????????##### | | ????????????????????#"#%g@ | | ????????????????????# ## %% | | ???????????????????# # ;;* | | ??????????????????# # # ; | | ?????????????????# ## ## """"" | | ?????????????????##?#??### ###### | | ????????????????????????#" ""##????# | | ???????????????????????##" """##?????? | | ???????????????????????#"" """##??????? | | ???????????????????????#"" ""#???????? | | ???????????????????????#"" ########?? | | ???????????????????????#"" ## ### | | ???????????????????????#"" t "" | | ???????????????????????##"" | | ????????????????????????#"" | | ????????????????????????## ! | | ?????????????????????????#" " | | ?????????????????????????#"""" ""## | | ?????????????????????????#"" ""#### | | ?????????????????????????#" """"##??# | | ?????????????????????????#""" """#??## | | ?????????????????????????## ""##??#! | | ??????????????????????????#"" """##???#" | | ??????????????????????????##""" ##????#" | | ???????????????????????????##"""" ##?????#!! | +----------------------------------------------------+ Best States ------------- Heat Dissipation 25 Energy Generation 19 Energy Capacity 310 Matter Stores 300 Matter Capacity 300 Sight Range 16 Terrain Scan Density 10 Evasion (%) 50 Recoil Reduction 1 Item Schematics ----------------- None Robot Schematics ------------------ None Fabricated ------------ Nothing Alien Tech Used ----------------- None Achievements -------------- None Challenges ------------ None Game ------ Seed MakeshiftTrapReplicator Manual? 0 Play Time 00:23:48 Cumulative 127.1 hours Start 2022.12.08 @ 20:16:44 End 2022.12.08 @ 20:42:00 Sessions 1 Manual Loads 0 Difficulty Rogue Special Mode None Game No. 229 Rogue 229 Adventurer 0 Explorer 0 Win Type - Total 2 Types 1/0/1/0/0/0/0/0/0 Lore% 65 Gallery% 73 Achievement% 53 Wizard Run 0 Options --------- ASCII 0 Keyboard 0 Movement Mouse Keybinds 0 Fullscreen 1 Font 18/SmallcapsGlow Map View 76x50 Tactical HUD 1 Map Filters NONE Filters NONE Steam 1 RUN: ce9c907c-bc7d-4278-abcb-fa63311b59b2